bitfinex-derivatives/quotes_SOLF0:USTF0_20250309
["timestamp","ask_amount","ask_price","bid_price","bid_amount"]
[1741532860737,7.5201,133.0,132.99,0.05389003]
[1741532863538,7.5201,133.0,132.94,225.7]
[1741532863539,7.5229,132.95,132.94,225.7]
[1741532864131,21.37707801,133.0,132.94,225.7]
[1741532864332,7.5227,132.96,132.94,225.7]
[1741532864741,7.57921834,132.96,132.94,225.75355113]
[1741532865242,7.5229,132.95,132.94,225.75355113]
[1741532865437,0.05651834,132.96,132.94,225.75355113]
[1741532867648,0.05651834,132.96,132.94,233.27675113]
[1741532869438,0.05651834,132.96,132.94,225.75355113]
[1741532870246,7.57921834,132.96,132.94,225.75355113]
[1741532870642,0.05651834,132.96,132.94,225.75355113]
[1741532870842,7.5229,132.95,132.94,225.75355113]
[1741532871042,7.5229,132.95,132.94,0.05355113]
[1741532871947,37.1429,132.95,132.94,0.05355113]
[1741532879050,29.62,132.95,132.94,0.05355113]
[1741532879453,7.5229,132.95,132.94,0.05355113]
[1741532881058,7.525,132.92,132.88,295.1466]
[1741532881254,7.525,132.92,132.88,233.1466]
[1741532882149,0.05101733,132.91,132.9,7.5257]
[1741532882347,29.62,132.96,132.89,0.05207859]
[1741532882550,0.05084749,132.92,132.9,50.99707801]
[1741532882751,7.5221,132.97,132.93,7.5236]
[1741532882958,21.37707801,133.01,132.92,21.37707801]
[1741532883159,29.62,133.0,132.92,21.37707801]
[1741532883361,7.5209,132.99,132.93,2.0728]
[1741532883557,29.62,133.0,132.93,3.9704]
[1741532883761,7.5213,132.98,132.93,11.494]
[1741532883963,7.57611966,132.98,132.95,0.05399994]
[1741532884151,0.05481966,132.98,132.95,0.05399994]
[1741532885452,7.57611966,132.98,132.95,0.05399994]
[1741532885755,0.05481966,132.98,132.95,0.05399994]
[1741532885963,50.97707801,132.97,132.95,0.05399994]
[1741532886160,7.5224,132.96,132.95,0.05399994]
[1741532886559,50.97707801,132.97,132.89,4.0723]
[1741532886956,7.5245,132.93,132.89,4.0723]
[1741532887763,0.05302868,132.92,132.9,0.0530157]
[1741532890167,7.57782868,132.92,132.9,0.0530157]
[1741532891868,0.05302868,132.92,132.9,0.0530157]
[1741532892172,0.05302868,132.92,132.9,7.5785157]
[1741532892670,7.5243,132.93,132.9,7.5785157]
[1741532893569,7.5247,132.92,132.9,0.0530157]
[1741532893771,0.05198381,132.93,132.9,0.0530157]
[1741532894165,7.57638381,132.93,132.9,7.5787157]
[1741532894366,0.05198381,132.93,132.9,7.5787157]
[1741532894766,7.57628381,132.93,132.9,7.5787157]
[1741532895671,7.5247,132.92,132.9,0.0530157]
[1741532896373,7.5252,132.91,132.9,0.0530157]
[1741532899665,21.42906182,132.93,132.9,0.0530157]
[1741532899869,7.5249,132.92,132.9,0.0530157]
[1741532900075,21.42906182,132.93,132.9,0.0530157]
[1741532900472,0.05198381,132.93,132.9,0.0530157]
[1741532900670,0.05198381,132.93,132.9,21.43009371]
[1741532900871,0.05198381,132.93,132.9,51.03009371]
[1741532901174,0.05198381,132.93,132.92,7.5246]
[1741532902374,29.6,132.98,132.92,21.37707801]
[1741532902672,7.5206,133.0,132.93,29.6]
[1741532902877,60.47611134,133.01,132.94,28.90037801]
[1741532903276,29.6,133.01,132.94,28.90037801]
[1741532903573,7.5213,132.98,132.96,0.04993222]
[1741532903774,0.05720502,132.99,132.96,0.04993222]
[1741532904773,0.05720502,132.99,132.96,21.42701023]
[1741532904973,0.05720502,132.99,132.97,1.9276]
[1741532905370,0.05720502,132.99,132.98,7.5212]
[1741532906279,0.05720502,132.99,132.97,1.9276]
[1741532906578,0.05720502,132.99,132.96,255.30993222]
[1741532906779,7.57830502,132.99,132.96,255.30993222]
[1741532907573,0.05720502,132.99,132.96,255.30993222]
[1741532907778,7.5217,132.98,132.96,255.30993222]
[1741532908176,0.05720502,132.99,132.96,255.30993222]
[1741532908376,7.5218,132.97,132.96,225.72993222]
[1741532909072,7.5218,132.97,132.96,0.04993222]
[1741532915187,7.5244,132.93,132.9,225.66]
[1741532915389,29.58,132.95,132.9,225.66]
[1741532915888,7.5227,132.96,132.91,3.9372]
[1741532916282,0.0526366,132.95,132.92,0.05717739]
[1741532916991,0.0526366,132.95,132.93,7.5237]
[1741532917991,0.0526366,132.95,132.94,7.5235]
[1741532918689,0.0526366,132.95,132.92,0.05717739]
[1741532918895,0.0526366,132.95,132.93,7.524]
[1741532919688,7.5759366,132.95,132.92,7.58137739]
[1741532920195,0.0526366,132.95,132.92,0.05717739]
[1741532920995,0.0526366,132.95,132.93,7.5241]
[1741532921696,0.0526366,132.95,132.94,7.5235]
[1741532925000,0.0526366,132.95,132.93,7.5239]
[1741532925200,0.0526366,132.95,132.92,0.05717739]
[1741532925389,7.5755366,132.95,132.92,7.58137739]
[1741532925594,7.5755366,132.95,132.92,0.05717739]
[1741532925790,7.5238,132.94,132.92,0.05717739]
[1741532927096,0.0526366,132.95,132.92,0.05717739]
[1741532927498,7.5758366,132.95,132.92,7.58147739]
[1741532927701,0.0526366,132.95,132.92,0.05717739]
[1741532927905,0.0526366,132.95,132.92,29.61717739]
[1741532928107,0.0526366,132.95,132.94,7.5235]
[1741532929508,29.56,133.01,132.98,7.5211]
[1741532929801,29.56,133.01,132.94,21.37707801]
[1741532930005,29.56,133.01,132.93,1.9089]
[1741532930709,0.05176757,132.98,132.96,0.05148293]
[1741532931101,50.98884558,132.98,132.96,0.05148293]
[1741532931301,7.5218,132.97,132.96,0.05148293]
[1741532936315,50.98884558,132.98,132.9,225.66]
[1741532936515,21.37707801,132.94,132.9,225.66]
[1741532936715,50.93707801,132.94,132.9,225.66]
[1741532937414,7.5252,132.91,132.9,225.66]
[1741532940418,7.5258,132.9,132.89,0.04998071]
[1741532949227,37.0853,132.91,132.89,0.04998071]
[1741532952029,29.56,132.91,132.89,0.04998071]
[1741532952231,7.5258,132.9,132.89,0.04998071]
[1741532953142,29.56,132.91,132.89,0.04998071]
[1741532953632,37.12196126,132.93,132.9,7.5255]
[1741532953935,0.05766126,132.93,132.89,0.04998071]
[1741532954229,21.22819716,132.92,132.89,7.57598071]
[1741532954533,0.05766126,132.93,132.89,0.04998071]
[1741532955032,13.70299716,132.92,132.89,0.04998071]
[1741532955228,0.05766126,132.93,132.89,0.04998071]
[1741532955229,13.70299716,132.9,132.89,0.04998071]
[1741532955734,21.22879716,132.9,132.89,0.04998071]
[1741532959538,13.70299716,132.9,132.84,225.68]
[1741532959741,13.70299716,132.86,132.84,225.68]
[1741532959937,7.5286,132.85,132.84,225.68]
[1741532961530,13.75165466,132.86,132.84,225.68]
[1741532962039,7.5292,132.84,132.83,0.05580775]
[1741532962241,13.75165466,132.86,132.83,0.05580775]
[1741532962635,7.529,132.85,132.83,0.05580775]
[1741532965934,13.75165466,132.86,132.83,0.05580775]
[1741532966142,0.0486575,132.86,132.83,13.75880491]
[1741532966545,0.0486575,132.86,132.84,7.5288]
[1741532967046,0.0486575,132.86,132.83,13.75880491]
[1741532967247,0.0486575,132.86,132.85,7.5286]
[1741532969347,0.0486575,132.86,132.84,7.5288]
[1741532969548,0.0486575,132.86,132.83,13.75880491]
[1741532970450,0.0486575,132.86,132.85,7.5286]
[1741532972847,13.70299716,132.91,132.85,13.70299716]
[1741532973049,37.0648,132.92,132.87,13.70299716]
[1741532973248,29.54,132.92,132.87,13.70299716]
[1741532973448,7.5255,132.91,132.88,7.5266]
[1741532973752,13.70299716,132.91,132.85,13.70299716]
[1741532973952,21.22839716,132.91,132.85,13.70299716]
[1741532974149,0.04843974,132.89,132.87,0.05690793]
[1741532974350,0.04843974,132.89,132.87,13.75990509]
[1741532974653,0.04843974,132.89,132.88,7.5269]
[1741532975552,0.04843974,132.89,132.87,21.28710509]
[1741532976050,0.04843974,132.89,132.88,7.5269]
[1741532979255,7.57473974,132.89,132.87,0.05690793]
[1741532981655,7.5269,132.88,132.87,0.05690793]
[1741532986266,29.56843974,132.89,132.87,0.05690793]
[1741532986759,37.09483974,132.89,132.87,0.05690793]
[1741532987356,29.56843974,132.89,132.87,0.05690793]
[1741532987659,7.5269,132.88,132.87,0.05690793]
[1741532988260,37.09503974,132.89,132.87,0.05690793]
[1741532988659,29.56843974,132.89,132.87,0.05690793]
[1741532988861,7.5269,132.88,132.87,0.05690793]
[1741532992065,37.09503974,132.89,132.87,0.05690793]
[1741532994364,37.09503974,132.89,132.87,7.58430793]
[1741532994659,43.2714369,132.89,132.8,2.0208]
[1741532994861,13.70299716,132.84,132.78,12.37703828]
[1741532995060,13.70299716,132.84,132.78,26.08003544]
[1741532995965,0.05752222,132.82,132.8,0.04822773]
[1741532997166,50.73389716,132.81,132.8,0.04822773]
[1741532997664,43.20299716,132.81,132.76,225.8]
[1741532997870,7.5326,132.78,132.76,225.8]
[1741532998072,13.70299716,132.79,132.76,225.8]
[1741532998270,7.5321,132.79,132.76,225.8]
[1741532998873,7.58908444,132.79,132.76,225.8]
[1741532999759,7.5331,132.77,132.73,41.53655313]
[1741532999972,29.5,132.78,132.73,41.53655313]
[1741533000172,0.05714243,132.76,132.73,41.53655313]
[1741533000671,21.50949489,132.76,132.73,41.53655313]
[1741533000972,29.5,132.75,132.73,41.53655313]
[1741533001174,37.0346,132.75,132.73,41.53655313]
[1741533001775,7.5348,132.74,132.73,41.53655313]
[1741533001975,29.5,132.75,132.73,41.53655313]
[1741533002179,29.5,132.75,132.69,689.8818348]
[1741533002180,29.5,132.75,132.69,236.20413828]
[1741533002472,0.05639352,132.73,132.69,236.20413828]
[1741533002980,0.05639352,132.73,132.7,7.5366]
[1741533003481,0.05639352,132.73,132.71,7.5362]
[1741533003875,0.05639352,132.73,132.69,236.20413828]
[1741533004183,0.05639352,132.73,132.72,7.536]
[1741533006082,29.5,132.77,132.75,7.5342]
[1741533006479,29.5,132.77,132.7,21.45235246]
[1741533006682,29.5,132.77,132.76,7.5337]
[1741533006987,29.5,132.77,132.71,29.5]
[1741533007186,29.5,132.77,132.75,7.59030115]
[1741533007586,29.55160703,132.77,132.75,7.59030115]
[1741533008287,29.55160703,132.77,132.75,0.05620115]
[1741533010089,29.55160703,132.77,132.75,7.59030115]
[1741533012999,0.05160703,132.77,132.76,7.5337]
[1741533013501,29.5,132.82,132.8,7.5314]
[1741533013790,29.5,132.82,132.76,21.45235246]
[1741533013988,29.5,132.82,132.8,7.5311]
[1741533014596,29.54775253,132.82,132.8,7.58554259]
[1741533014794,29.54775253,132.82,132.8,0.05444259]
[1741533015495,7.5309,132.81,132.8,0.05444259]
[1741533017200,37.07825253,132.82,132.8,0.05444259]
[1741533017698,7.5309,132.81,132.8,0.05444259]
[1741533017897,29.54775253,132.82,132.8,0.05444259]
[1741533018299,7.5309,132.81,132.8,0.05444259]
[1741533019598,7.5335,132.77,132.73,11.5574]
[1741533019993,7.5344,132.75,132.73,4.0223]
[1741533020192,29.5,132.79,132.73,4.0223]
[1741533020389,0.05201802,132.77,132.73,4.0223]
[1741533020595,0.05201802,132.77,132.75,0.05534258]
[1741533021396,7.58541802,132.77,132.75,0.05534258]
[1741533021595,0.05201802,132.77,132.75,0.05534258]
[1741533021795,0.05201802,132.77,132.76,7.5337]
[1741533021997,0.05201802,132.77,132.75,0.05534258]
[1741533023097,7.5337,132.76,132.75,0.05534258]
[1741533024803,0.05201802,132.77,132.75,0.05534258]
[1741533026101,13.7865531,132.77,132.75,0.05534258]
[1741533026700,7.5337,132.76,132.75,0.05534258]
[1741533029406,13.7865531,132.77,132.75,0.05534258]
[1741533029607,21.3199531,132.77,132.75,0.05534258]
[1741533029808,13.7865531,132.77,132.75,0.05534258]
[1741533030307,7.5337,132.76,132.75,0.05534258]
[1741533030507,13.7865531,132.77,132.75,0.05534258]
[1741533030809,21.3200531,132.77,132.75,0.05534258]
[1741533031305,13.7865531,132.77,132.75,0.05534258]
[1741533031698,7.5337,132.76,132.75,0.05534258]
[1741533042210,13.7865531,132.77,132.68,19.56853508]
[1741533042418,7.5357,132.73,132.68,19.56853508]
[1741533042916,13.73453508,132.74,132.7,7.537]
[1741533043211,7.536,132.72,132.7,7.537]
[1741533043415,13.73453508,132.72,132.68,5.834]
[1741533043812,7.5369,132.71,132.68,5.834]
[1741533044011,13.73453508,132.72,132.68,13.3722]
[1741533044511,13.73453508,132.72,132.68,5.834]
[1741533044706,7.5368,132.71,132.68,5.834]
[1741533044916,7.5368,132.71,132.65,53.59867336]
[1741533045114,7.5368,132.71,132.67,7.5385]
[1741533045710,43.21453508,132.72,132.67,7.5385]
[1741533046413,43.21453508,132.72,132.65,53.59867336]
[1741533046617,43.21453508,132.72,132.68,7.5382]
[1741533048116,43.21453508,132.72,132.69,233.3576]
[1741533049120,43.21453508,132.72,132.69,225.82]
[1741533049320,13.73453508,132.7,132.69,225.82]
[1741533051014,13.73453508,132.7,132.65,13.73453508]
[1741533051422,0.05164672,132.69,132.65,13.73453508]
[1741533051619,0.05164672,132.69,132.67,7.5387]
[1741533051915,0.05164672,132.69,132.65,13.73453508]
[1741533052321,0.05164672,132.69,132.64,17.71093508]
[1741533052620,0.05164672,132.69,132.67,7.5387]
[1741533053317,0.05164672,132.69,132.64,17.71093508]
[1741533053513,0.05164672,132.69,132.66,7.5389]
[1741533053718,29.51164672,132.69,132.64,17.71093508]
[1741533055019,29.51164672,132.69,132.67,7.5385]
[1741533055322,29.51164672,132.69,132.64,17.71093508]
[1741533056516,29.51164672,132.69,132.68,7.5382]
[1741533056718,0.05164672,132.69,132.68,7.5382]
[1741533057115,43.2461818,132.69,132.55,363.94762675]
[1741533057320,13.73453508,132.67,132.62,13.73453508]
[1741533057523,0.05747654,132.64,132.62,13.73453508]
[1741533058524,0.05747654,132.64,132.63,7.5411]
[1741533059324,0.05747654,132.64,132.62,21.27603508]
[1741533059724,0.05747654,132.64,132.6,47.10753508]
[1741533059925,0.05747654,132.64,132.6,54.65003508]
[1741533060224,0.05747654,132.64,132.6,109.10753508]
[1741533060420,0.05747654,132.64,132.6,7.5423]
[1741533062218,0.05747654,132.64,132.59,21.27763508]
[1741533063423,0.05747654,132.64,132.59,13.73453508]
[1741533063625,0.05747654,132.64,132.6,7.5427]
[1741533063828,43.19453508,132.63,132.58,226.08]
[1741533064119,43.19453508,132.63,132.58,233.6236]
[1741533064325,43.19453508,132.63,132.59,13.73453508]
[1741533064722,43.19453508,132.63,132.59,21.27743508]
[1741533065525,43.19453508,132.63,132.59,13.73453508]
[1741533066027,50.73593508,132.63,132.59,13.73453508]
[1741533067122,43.19453508,132.63,132.59,13.73453508]
[1741533067328,43.19453508,132.63,132.59,21.27773508]
[1741533067725,50.73593508,132.63,132.59,21.27773508]
[1741533067918,43.19453508,132.63,132.59,13.73453508]
[1741533068325,7.5417,132.62,132.59,13.73453508]
[1741533068727,43.19453508,132.63,132.59,13.73453508]
[1741533068924,7.5423,132.61,132.59,13.73453508]
[1741533069129,43.19453508,132.63,132.58,226.08]
[1741533069327,0.05182034,132.61,132.58,226.08]
[1741533069729,7.59452034,132.61,132.58,226.08]
[1741533069937,0.05182034,132.61,132.58,226.08]
[1741533070432,7.5428,132.6,132.58,226.08]
[1741533071128,7.5434,132.59,132.58,226.08]
[1741533073538,0.05182034,132.61,132.58,226.08]
[1741533073738,13.73453508,132.65,132.59,13.73453508]
[1741533073931,43.19453508,132.67,132.61,13.73453508]
[1741533074131,7.5402,132.65,132.61,21.27643508]
[1741533074343,13.73453508,132.65,132.61,13.73453508]
[1741533074532,13.73453508,132.65,132.59,15.71733508]
[1741533074732,7.5418,132.62,132.59,15.71733508]
[1741533074934,0.05055746,132.63,132.61,0.04748143]
[1741533075438,7.59215746,132.63,132.61,0.04748143]
[1741533075738,13.78509254,132.63,132.61,0.04748143]
[1741533075939,7.5416,132.62,132.61,0.04748143]
[1741533076333,13.78509254,132.63,132.61,0.04748143]
[1741533076536,21.32649254,132.63,132.61,0.04748143]
[1741533076938,13.78509254,132.63,132.61,0.04748143]
[1741533077334,7.5416,132.62,132.61,0.04748143]
[1741533083233,0.05055746,132.63,132.61,0.04748143]
[1741533083543,0.05055746,132.63,132.61,13.78201651]
[1741533083741,0.05055746,132.63,132.62,7.5416]
[1741533084339,0.05055746,132.63,132.61,21.32391651]
[1741533084538,0.05055746,132.63,132.61,0.04748143]
[1741533085144,7.59195746,132.63,132.61,0.04748143]
[1741533088445,7.5416,132.62,132.61,0.04748143]
[1741533090152,43.22509254,132.63,132.58,226.08]
[1741533090449,7.5426,132.61,132.58,226.08]
[1741533091440,7.5426,132.61,132.58,233.6239]
[1741533091745,43.22509254,132.63,132.58,233.6239]
[1741533091746,7.5429,132.6,132.58,226.08]
[1741533091942,43.17453508,132.63,132.58,233.6239]
[1741533092148,0.05555895,132.6,132.58,233.6239]
[1741533092742,0.05555895,132.6,132.58,226.08]
[1741533093449,7.59865895,132.6,132.58,226.08]
[1741533095450,7.5434,132.59,132.58,226.08]
[1741533096352,7.59865895,132.6,132.58,226.08]
[1741533096552,0.05555895,132.6,132.58,226.08]
[1741533096947,7.5434,132.59,132.56,21.27923508]
[1741533097956,7.5442,132.58,132.56,13.73453508]
[1741533098251,29.49555895,132.6,132.54,13.73453508]
[1741533098441,29.44,132.6,132.54,13.73453508]
[1741533098647,29.44,132.6,132.56,7.5448]
[1741533098649,0.05415372,132.58,132.56,7.5448]
[1741533098846,0.05415372,132.58,132.56,13.73453508]
[1741533099051,0.05415372,132.58,132.57,7.5445]
[1741533099448,0.05415372,132.58,132.55,13.73453508]
[1741533099648,0.05415372,132.58,132.55,7.5453]
[1741533099849,0.05415372,132.58,132.55,21.27983508]
[1741533100149,0.05415372,132.58,132.55,21.27993508]
[1741533100349,0.05415372,132.58,132.55,13.73453508]
[1741533100760,0.05415372,132.58,132.56,7.5449]
[1741533100951,0.05415372,132.58,132.55,13.73453508]
[1741533102149,0.05415372,132.58,132.57,13.73453508]
[1741533102354,0.05415372,132.58,132.57,21.27903508]
[1741533102751,0.05415372,132.58,132.55,13.73453508]
[1741533102955,0.05415372,132.58,132.56,7.5449]
[1741533103557,0.05415372,132.58,132.55,21.27983508]
[1741533103856,0.05415372,132.58,132.55,13.73453508]
[1741533104956,0.05415372,132.58,132.55,21.28013508]
[1741533105353,0.05415372,132.58,132.55,13.73453508]
[1741533105554,0.05415372,132.58,132.56,7.5448]
[1741533105961,0.05415372,132.58,132.55,13.73453508]
[1741533106548,7.59835372,132.58,132.55,13.73453508]
[1741533107060,0.05415372,132.58,132.55,21.27983508]
[1741533107259,0.05415372,132.58,132.55,13.73453508]
[1741533107756,7.5448,132.57,132.55,13.73453508]
[1741533108357,7.5448,132.57,132.53,226.26]
[1741533108358,7.5448,132.57,132.54,13.73453508]
[1741533108658,0.05415372,132.58,132.54,13.73453508]
[1741533108858,0.05415372,132.58,132.53,226.26]
[1741533109057,0.05415372,132.58,132.55,13.73453508]
[1741533109358,0.05415372,132.58,132.57,21.27903508]
[1741533109760,0.05415372,132.58,132.57,13.73453508]
[1741533109965,0.05415372,132.58,132.56,7.5448]
[1741533110162,0.05415372,132.58,132.55,13.73453508]
[1741533110366,7.5448,132.57,132.55,13.73453508]
[1741533110660,0.05415372,132.58,132.54,13.73453508]
[1741533110865,7.5453,132.56,132.53,247.54123508]
[1741533111061,29.49415372,132.58,132.53,239.99453508]
[1741533111565,13.73453508,132.57,132.53,226.26]
[1741533114264,7.5461,132.55,132.53,226.26]
[1741533114665,7.59688882,132.55,132.53,226.26]
[1741533114974,0.05078882,132.55,132.53,226.26]
[1741533117563,7.5462,132.54,132.53,226.26]
[1741533117760,7.5462,132.54,132.5,21.28273508]
[1741533118162,7.5468,132.53,132.5,13.73453508]
[1741533120272,7.5468,132.53,132.5,21.28303508]
[1741533120474,29.47078882,132.55,132.52,13.73453508]
[1741533120771,7.5464,132.54,132.52,13.73453508]
[1741533120970,29.47019289,132.55,132.52,13.73453508]
[1741533121173,43.20472797,132.55,132.51,13.73453508]
[1741533121676,7.5471,132.53,132.51,13.73453508]
[1741533121877,43.20472797,132.55,132.51,13.73453508]
[1741533122378,7.5473,132.52,132.51,13.73453508]
[1741533123074,7.5483,132.51,132.49,13.73453508]
[1741533123679,29.42,132.5,132.43,10.38413828]
[1741533123877,13.73453508,132.49,132.43,10.38413828]
[1741533124179,7.5509,132.46,132.44,13.73453508]
[1741533124372,0.05283862,132.48,132.44,13.73453508]
[1741533124677,29.42,132.47,132.43,24.11867336]
[1741533125376,36.9705,132.47,132.43,31.67077336]
[1741533125676,29.42,132.47,132.43,24.11867336]
[1741533125873,0.05283862,132.48,132.45,13.73453508]
[1741533126073,13.73453508,132.51,132.47,13.73453508]
[1741533126074,29.42,132.5,132.47,13.73453508]
[1741533126277,36.9685,132.5,132.47,13.73453508]
[1741533126476,29.42,132.5,132.47,13.73453508]
[1741533127385,29.47414067,132.5,132.47,13.78868276]
[1741533129188,29.47414067,132.5,132.47,21.33878276]
[1741533129487,29.47414067,132.5,132.47,13.78868276]
[1741533129786,37.02264067,132.5,132.47,13.78868276]
[1741533130387,29.47414067,132.5,132.47,21.33878276]
[1741533130686,29.47414067,132.5,132.47,13.78868276]
[1741533130887,13.73453508,132.49,132.47,0.05414768]
[1741533131492,7.5496,132.48,132.47,0.05414768]
[1741533133386,13.73453508,132.49,132.43,13.73453508]
[1741533133587,7.5509,132.46,132.43,13.73453508]
[1741533134085,36.9705,132.47,132.43,13.73453508]
[1741533134689,0.05593247,132.46,132.43,13.73453508]
[1741533135185,0.05593247,132.46,132.43,21.28693508]
[1741533135386,29.42,132.47,132.45,13.73453508]
[1741533135688,43.15453508,132.5,132.45,13.73453508]
[1741533136389,43.15453508,132.5,132.44,13.73453508]
[1741533136590,0.05178962,132.49,132.46,0.05343182]
[1741533136892,7.60108962,132.49,132.46,0.05343182]
[1741533137091,7.60108962,132.49,132.46,7.60403182]
[1741533137482,0.05178962,132.49,132.46,0.05343182]
[1741533137980,0.05178962,132.49,132.46,13.7879669]
[1741533138181,29.42,132.51,132.48,21.28383508]
[1741533138589,13.73453508,132.53,132.48,13.73453508]
[1741533138989,7.549,132.5,132.48,13.73453508]
[1741533139188,13.73453508,132.51,132.45,13.73453508]
[1741533139491,13.73453508,132.49,132.48,0.05751679]
[1741533139692,21.28353508,132.49,132.48,0.05751679]
[1741533139889,50.70353508,132.49,132.48,0.05751679]
[1741533140286,7.553,132.42,132.41,17.63823508]
[1741533140492,7.553,132.42,132.41,3.9037]
[1741533140898,7.5536,132.41,132.4,226.36]
[1741533141098,43.15453508,132.44,132.4,226.36]
[1741533141392,0.05623133,132.43,132.41,0.05352297]
[1741533142896,7.60893133,132.43,132.41,0.05352297]
[1741533143194,0.05623133,132.43,132.41,0.05352297]
[1741533145299,7.60913133,132.43,132.41,0.05352297]
[1741533145492,0.05623133,132.43,132.41,0.05352297]
[1741533145796,0.05623133,132.43,132.41,13.78805805]
[1741533146199,0.05623133,132.43,132.41,21.34165805]
[1741533146793,0.05623133,132.43,132.41,13.78805805]
[1741533147196,29.42,132.47,132.41,17.72845805]
[1741533147497,29.42,132.47,132.45,21.28583508]
[1741533148502,29.47441335,132.47,132.45,21.34110485]
[1741533149001,0.05441335,132.47,132.45,21.34110485]
[1741533151102,0.05441335,132.47,132.45,13.78980485]
[1741533152804,0.05441335,132.47,132.46,7.5508]
[1741533153493,29.42,132.49,132.47,7.5499]
[1741533153696,29.42,132.49,132.48,13.73453508]
[1741533154292,7.5487,132.5,132.48,13.73453508]
[1741533154501,7.59635659,132.5,132.48,13.73453508]
[1741533154706,7.59635659,132.5,132.48,0.05102758]
[1741533154707,7.549,132.49,132.48,0.05102758]
[1741533155104,21.28353508,132.49,132.48,0.05102758]
[1741533156210,7.549,132.49,132.48,0.05102758]
[1741533157104,21.28353508,132.49,132.48,0.05102758]
[1741533157706,7.5513,132.45,132.44,13.73453508]
[1741533157907,29.4,132.47,132.44,13.73453508]
[1741533158210,7.5512,132.46,132.44,13.73453508]
[1741533158710,7.60772223,132.46,132.44,13.79171492]
[1741533159604,0.05652223,132.46,132.44,21.34351492]
[1741533159907,0.05652223,132.46,132.44,13.79171492]
[1741533160707,7.60772223,132.46,132.44,13.79171492]
[1741533161011,0.05652223,132.46,132.44,13.79171492]
[1741533162217,29.4,132.52,132.44,13.79171492]
[1741533162408,29.4,132.52,132.42,31.32]
[1741533162409,15.78333508,132.53,132.46,13.73453508]
[1741533162612,7.5488,132.5,132.46,21.28483508]
[1741533162909,7.5488,132.5,132.46,13.73453508]
[1741533163216,0.0545601,132.49,132.47,7.60545396]
[1741533167026,29.4,132.53,132.5,7.5483]
[1741533167228,29.4,132.53,132.5,21.28283508]
[1741533167413,13.73453508,132.56,132.5,21.28283508]
[1741533167617,29.4,132.54,132.51,7.5478]
[1741533168018,29.4,132.54,132.5,13.73453508]
[1741533168218,36.9967582,132.54,132.51,0.05751209]
[1741533168415,29.4502582,132.54,132.51,0.05751209]
[1741533168725,0.0502582,132.54,132.51,0.05751209]
[1741533168921,29.4302582,132.54,132.51,0.05751209]
[1741533169321,29.4302582,132.54,132.51,7.60541209]
[1741533169519,0.0502582,132.54,132.52,13.73453508]
[1741533169825,7.543,132.6,132.56,7.5446]
[1741533170014,60.25611134,132.61,132.57,13.73453508]
[1741533170220,13.73453508,132.6,132.55,13.73453508]
[1741533170919,7.5438,132.59,132.55,21.27983508]
[1741533171114,7.60148091,132.59,132.56,0.05018594]
[1741533173414,0.05768091,132.59,132.56,0.05018594]
[1741533173625,7.5439,132.58,132.56,0.05018594]
[1741533174024,7.5445,132.57,132.56,0.05018594]
[1741533174419,0.05768091,132.59,132.56,0.05018594]
[1741533174614,7.5443,132.58,132.56,0.05018594]
[1741533176624,7.5445,132.57,132.56,0.05018594]
[1741533177025,36.9245,132.57,132.56,0.05018594]
[1741533177221,7.5462,132.54,132.53,13.73453508]
[1741533177426,7.5462,132.54,132.51,13.73453508]
[1741533177621,29.38,132.57,132.51,13.73453508]
[1741533177827,7.5459,132.55,132.51,13.73453508]
[1741533178027,29.38,132.57,132.51,13.73453508]
[1741533178218,29.38,132.57,132.53,13.73453508]
[1741533178425,0.05796698,132.55,132.53,21.33250436]
[1741533178821,0.05796698,132.55,132.54,7.5462]
[1741533181628,29.36,132.59,132.56,7.5445]
[1741533182025,36.9037,132.59,132.56,7.5445]
[1741533182832,29.41129627,132.59,132.56,7.60073486]
[1741533183636,36.95499627,132.59,132.56,7.60073486]
[1741533183835,36.95499627,132.59,132.56,13.79076994]
[1741533183836,29.41129627,132.59,132.56,13.79076994]
[1741533184233,36.95489627,132.59,132.56,13.79076994]
[1741533184635,36.95489627,132.59,132.56,21.33566994]
[1741533185337,7.5439,132.58,132.56,13.79076994]
[1741533185540,29.41129627,132.59,132.56,0.05623486]
[1741533185931,29.41129627,132.59,132.56,21.33576994]
[1741533186240,0.05129627,132.59,132.58,13.73453508]
[1741533187039,0.05129627,132.59,132.58,21.27843508]
[1741533187240,13.73453508,132.65,132.58,21.27843508]
[1741533187241,29.36,132.64,132.58,13.73453508]
[1741533187438,29.36,132.64,132.61,13.73453508]